fUST/lending_fUST_20241027
["ID","MTS","AMOUNT","RATE_DAILY","PERIOD"]
[340896332,1730040647618,-151.0,0.00027397,7]
[340896333,1730040647627,-151.0,0.00027397,7]
[340896334,1730040647638,-151.0,0.00027397,7]
[340896335,1730040647647,-151.0,0.00027397,7]
[340896336,1730040647657,-151.0,0.00027397,7]
[340896337,1730040647668,-500.0,0.00027397,30]
[340896338,1730040647677,-151.0,0.00027397,7]
[340896339,1730040647687,-1431.39,0.00027397,30]
[340896340,1730040647697,-500.0,0.00027397,30]
[340896341,1730040647707,-1399.49,0.00027397,30]
[340896342,1730040647716,-151.0,0.00027397,7]
[340896343,1730040647726,-151.0,0.00027397,7]
[340896344,1730040647735,-151.0,0.00027397,7]
[340896345,1730040647746,-1009.6,0.00027397,30]
[340896346,1730040647755,-500.0,0.00027397,30]
[340896347,1730040647764,-1195.96,0.00027397,30]
[340896348,1730040647774,-500.0,0.00027397,30]
[340896349,1730040647784,-476.31313765,0.00027397,30]
[340896350,1730040647794,-1765.9,0.00027397,30]
[340896351,1730040647804,-305.074986,0.00027397,7]
[340896352,1730040647813,-305.074986,0.00027397,7]
[340896353,1730040647823,-305.074986,0.00027397,7]
[340896354,1730040647833,-305.074986,0.00027397,7]
[340896355,1730040647844,-305.074986,0.00027397,7]
[340896356,1730040647854,-305.074986,0.00027397,7]
[340896357,1730040647865,-305.074986,0.00027397,7]
[340896358,1730040647877,-500.0,0.00027397,30]
[340896359,1730040647888,-1296.64,0.00027397,30]
[340896360,1730040647899,-305.074986,0.00027397,7]
[340896361,1730040647910,-305.074986,0.00027397,7]
[340896362,1730040647920,-500.0,0.00027397,30]
[340896363,1730040647932,-305.074986,0.00027397,7]
[340896364,1730040647942,-305.074986,0.00027397,7]
[340896365,1730040647953,-305.074986,0.00027397,7]
[340896366,1730040647963,-305.074986,0.00027397,7]
[340896367,1730040647975,-2535.14,0.00027397,30]
[340896368,1730040647986,-305.074986,0.00027397,7]
[340896369,1730040647996,-1062.97,0.00027397,30]
[340896370,1730040648007,-503.56,0.00027397,30]
[340896371,1730040648017,-5969.15,0.00027397,30]
[340896372,1730040648027,-500.0,0.00027397,30]
[340896373,1730040648037,-3362.21,0.00027397,30]
[340896374,1730040648048,-151.0,0.00027397,7]
[340896375,1730040648059,-151.0,0.00027397,7]
[340896376,1730040648069,-151.0,0.00027397,7]
[340896377,1730040648079,-151.0,0.00027397,7]
[340896378,1730040648090,-151.0,0.00027397,7]
[340896379,1730040648100,-500.0,0.00027397,30]
[340896380,1730040648109,-500.0,0.00027397,30]
[340896381,1730040648118,-190.820589,0.00027397,7]
[340896382,1730040648129,-508.88,0.00027397,30]
[340896383,1730040648139,-190.820589,0.00027397,7]
[340896384,1730040648148,-190.820589,0.00027397,7]
[340896385,1730040648159,-190.820589,0.00027397,7]
[340896386,1730040648169,-190.820589,0.00027397,7]
[340896387,1730040648179,-151.0,0.00027397,7]
[340896388,1730040648189,-190.820589,0.00027397,7]
[340896389,1730040648199,-151.0,0.00027397,7]
[340896390,1730040648209,-190.820589,0.00027397,7]
[340896391,1730040648219,-151.0,0.00027397,7]
[340896392,1730040648229,-3230.09,0.00027397,30]
[340896393,1730040648240,-151.0,0.00027397,7]
[340896394,1730040648251,-237.692225,0.00027397,7]
[340896395,1730040648260,-151.0,0.00027397,7]
[340896396,1730040648270,-1200.52,0.00027397,30]
[340896397,1730040648280,-151.0,0.00027397,7]
[340896398,1730040648289,-500.0,0.00027397,30]
[340896399,1730040648476,-1178.62,0.00027397,30]
[340896400,1730040648486,-959.24,0.00027397,30]
[340896401,1730040648495,-151.0,0.00027397,7]
[340896402,1730040648508,-190.820589,0.00027397,7]
[340896403,1730040648517,-190.820589,0.00027397,7]
[340896404,1730040648527,-151.0,0.00027397,7]
[340896405,1730040648536,-190.820589,0.00027397,7]
[340896406,1730040648547,-500.0,0.00027397,30]
[340896407,1730040648556,-151.0,0.00027397,7]
[340896408,1730040648566,-190.820589,0.00027397,7]
[340896409,1730040648577,-151.0,0.00027397,7]
[340896410,1730040648587,-190.820589,0.00027397,7]
[340896411,1730040648597,-151.0,0.00027397,7]
[340896412,1730040648608,-190.820589,0.00027397,7]
[340896413,1730040648618,-151.0,0.00027397,7]
[340896414,1730040648629,-190.820589,0.00027397,7]
[340896415,1730040648639,-151.0,0.00027397,7]
[340896416,1730040648649,-500.0,0.00027397,30]
[340896417,1730040648659,-296.911888,0.00027397,7]
[340896418,1730040648669,-500.0,0.00027397,10]
[340896419,1730040648679,-634.41,0.00027397,30]
[340896420,1730040648688,-500.0,0.00027397,30]
[340896421,1730040648698,-500.0,0.00027397,30]
[340896422,1730040648708,-2288.82,0.00027397,30]
[340896423,1730040648717,-555.10323334,0.00027397,30]
[340896424,1730040648727,-500.0,0.00027397,30]
[340896425,1730040648736,-559.15,0.00027397,30]
[340896426,1730040648746,-670.42,0.00027397,30]
[340896427,1730040648755,-998.22,0.00027397,30]
[340896428,1730040648766,-1248.9,0.00027397,30]
[340896429,1730040648775,-1454.53,0.00027397,30]
[340896430,1730040648786,-323.42315892,0.00027397,30]
[340896431,1730040648795,-500.0,0.00027397,30]
[340896432,1730040648806,-500.0,0.00027397,30]
[340896433,1730040648817,-1224.29,0.00027397,30]
[340896434,1730040648827,-500.0,0.00027397,30]
[340896435,1730040648836,-428.87053234,0.00027397,30]
[340896436,1730040648846,-500.0,0.00027397,30]
[340896437,1730040648855,-500.0,0.00027397,30]
[340896438,1730040648865,-2527.84,0.00027397,30]
[340896439,1730040648874,-180.5,0.00027397,30]
[340896440,1730040648884,-151.0,0.00027397,7]
[340896441,1730040648894,-151.0,0.00027397,7]
[340896442,1730040648904,-151.0,0.00027397,7]
[340896443,1730040648914,-151.0,0.00027397,7]
[340896444,1730040648923,-151.0,0.00027397,7]
[340896445,1730040648933,-151.0,0.00027397,7]
[340896446,1730040648945,-562.0,0.00027397,30]
[340896447,1730040648955,-151.0,0.00027397,7]
[340896448,1730040648965,-816.42,0.00027397,30]
[340896449,1730040648976,-151.0,0.00027397,7]
[340896450,1730040648987,-151.0,0.00027397,7]
[340896451,1730040648997,-500.0,0.00027397,30]
[340896452,1730040649006,-151.0,0.00027397,7]
[340896453,1730040649016,-151.0,0.00027397,7]
[340896454,1730040649026,-151.0,0.00027397,7]
[340896455,1730040649036,-922.64,0.00027397,30]
[340896456,1730040649046,-266.138204,0.00027397,7]
[340896457,1730040649056,-500.83,0.00027397,30]
[340896458,1730040649065,-1588.06,0.00027397,30]
[340896459,1730040649075,-151.0,0.00027397,7]
[340896460,1730040649085,-151.0,0.00027397,7]
[340896461,1730040649095,-151.0,0.00027397,7]
[340896462,1730040649106,-151.0,0.00027397,7]
[340896463,1730040649116,-151.0,0.00027397,7]
[340896464,1730040649125,-151.0,0.00027397,7]
[340896465,1730040649135,-151.0,0.00027397,7]
[340896466,1730040649146,-500.0,0.00027397,2]
[340896467,1730040649156,-151.0,0.00027397,7]
[340896468,1730040649166,-846.98,0.00027397,30]
[340896469,1730040649177,-151.0,0.00027397,7]
[340896470,1730040649187,-151.0,0.00027397,7]
[340896471,1730040649197,-151.0,0.00027397,7]
[340896472,1730040649207,-151.0,0.00027397,7]
[340896473,1730040649217,-719.93,0.00027397,30]
[340896474,1730040649226,-500.0,0.00027397,2]
[340896475,1730040649236,-151.0,0.00027397,7]
[340896476,1730040649245,-151.0,0.00027397,7]
[340896477,1730040649255,-151.0,0.00027397,7]
[340896478,1730040649265,-2811.92,0.00027397,30]
[340896479,1730040649275,-151.0,0.00027397,7]
[340896480,1730040649284,-151.0,0.00027397,7]
[340896481,1730040649294,-750.98,0.00027397,30]
[340896482,1730040649304,-184.00842,0.00027397,7]
[340896483,1730040649313,-155.73094122,0.00027397,30]
[340896484,1730040649323,-1120.45,0.00027397,30]
[340896485,1730040649333,-698.9,0.00027397,30]
[340896486,1730040649344,-151.0,0.00027397,7]
[340896487,1730040649353,-151.0,0.00027397,7]
[340896488,1730040649362,-224.441056,0.00027397,7]
[340896489,1730040649372,-500.0,0.00027397,30]
[340896490,1730040649381,-151.0,0.00027397,7]
[340896491,1730040649391,-151.0,0.00027397,7]
[340896492,1730040649401,-151.0,0.00027397,7]
[340896493,1730040649411,-158.501364,0.00027397,7]
[340896494,1730040649421,-1999.14,0.00027397,30]
[340896495,1730040649431,-1844.81,0.00027397,30]
[340896496,1730040649441,-35390.84,0.00027397,30]
[340896497,1730040649451,-151.0,0.00027397,2]
[340896498,1730040649461,-151.0,0.00027397,2]
[340896499,1730040649471,-151.0,0.00027397,2]
[340896500,1730040649481,-151.0,0.00027397,2]
[340896501,1730040649490,-151.0,0.00027397,2]
[340896502,1730040649505,-235.725493,0.00027397,2]
[340896503,1730040649515,-150.112233,0.000274,7]
[340896504,1730040649525,-223.696781,0.000274,10]
[340896505,1730040649536,-250.0,0.00027408,2]
[340896506,1730040649547,-527.0,0.00027416,2]
[340896507,1730040649557,-2396.0,0.00027416,2]
[340896508,1730040649567,-1150.0,0.00027416,2]
[340896509,1730040649577,-150.112233,0.000275,7]
[340896510,1730040649587,-10.93234292,0.000275,9]
[340896517,1730040719285,487.47604451,0.00034246,120]
[340896518,1730040719503,511.52395549,0.00034246,120]
[340896523,1730040966392,487.47604451,0.00034246,120]
[340896615,1730041668956,963799.67251183,0.00036162,30]
[340896622,1730041832591,-597.66994097,0.00026053,4]
[340896623,1730041832601,-75.33005903,0.00026153,2]
[340896624,1730041832612,-224.66994097,0.00026153,2]
[340896625,1730041832622,-300.0,0.00026153,2]
[340896626,1730041832632,-644.12263509,0.00026154,2]
[340896627,1730041832645,-14642.18169691,0.00026154,2]
[340896628,1730041832655,-151.066,0.0002661,2]
[340896629,1730041832666,-152.45,0.00027,120]
[340896630,1730041832677,-305.45,0.00027367,3]
[340896631,1730041832688,-152.72,0.00027367,3]
[340896632,1730041832697,-458.21,0.00027367,3]
[340896633,1730041832713,-583.6,0.00027367,10]
[340896634,1730041832728,-486.33,0.00027367,10]
[340896635,1730041832738,-500.0,0.00027373,2]
[340896636,1730041832750,-500.0,0.00027373,2]
[340896637,1730041832760,-500.0,0.00027373,2]
[340896638,1730041832770,-420.97217201,0.00027376,2]
[340896639,1730041832783,-194.24509836,0.00027376,2]
[340896640,1730041832803,-187.63240567,0.00027376,2]
[340896641,1730041832812,-166.39349669,0.00027376,2]
[340896642,1730041832822,-576.71951542,0.00027376,2]
[340896643,1730041832832,-253566.409287,0.00027377,4]
[340896644,1730041832842,-421.04521936,0.00027377,4]
[340896645,1730041832852,-315.78391452,0.00027387,4]
[340896646,1730041832862,-500.0,0.00027397,30]
[340896647,1730041832872,-500.0,0.00027397,30]
[340896648,1730041832883,-500.0,0.00027397,30]
[340896649,1730041832894,-888.95,0.00027397,30]
[340896650,1730041832904,-500.0,0.00027397,30]
[340896651,1730041832914,-500.0,0.00027397,30]
[340896652,1730041832924,-518.86437432,0.00027397,30]
[340896653,1730041832934,-500.0,0.00027397,30]
[340896654,1730041832943,-500.0,0.00027397,30]
[340896655,1730041832953,-500.0,0.00027397,30]
[340896656,1730041832964,-500.0,0.00027397,30]
[340896657,1730041832974,-579.32272302,0.00027397,30]
[340896658,1730041832984,-534.43,0.00027397,30]
[340896659,1730041832993,-855.41,0.00027397,30]
[340896660,1730041833003,-500.0,0.00027397,30]
[340896661,1730041833012,-500.0,0.00027397,30]
[340896662,1730041833023,-898.49,0.00027397,30]
[340896663,1730041833033,-500.0,0.00027397,30]
[340896664,1730041833044,-938.18,0.00027397,30]
[340896665,1730041833053,-251.26785604,0.00027397,30]
[340896666,1730041833064,-500.0,0.00027397,30]
[340896667,1730041833076,-670.91,0.00027397,30]
[340896668,1730041833087,-500.0,0.00027397,30]
[340896669,1730041833097,-500.0,0.00027397,30]
[340896670,1730041833107,-500.0,0.00027397,30]
[340896671,1730041833116,-1792.22,0.00027397,30]
[340896672,1730041833127,-410.89198145,0.00027397,30]
[340896673,1730041833137,-873.23,0.00027397,30]
[340896674,1730041833147,-500.0,0.00027397,30]
[340896675,1730041833159,-644.42850245,0.00027397,30]
[340896676,1730041833168,-500.0,0.00027397,30]
[340896677,1730041833178,-500.0,0.00027397,30]
[340896678,1730041833188,-565.6,0.00027397,30]
[340896679,1730041833197,-500.0,0.00027397,30]
[340896680,1730041833207,-500.0,0.00027397,30]
[340896681,1730041833217,-500.0,0.00027397,30]
[340896682,1730041833227,-500.0,0.00027397,30]
[340896683,1730041833237,-500.0,0.00027397,30]
[340896684,1730041833247,-870.79,0.00027397,30]
[340896685,1730041833257,-500.0,0.00027397,30]
[340896686,1730041833267,-500.0,0.00027397,30]
[340896687,1730041833277,-555.50627608,0.00027397,30]
[340896688,1730041833287,-500.0,0.00027397,30]
[340896689,1730041833303,-500.0,0.00027397,30]
[340896690,1730041833313,-500.0,0.00027397,30]
[340896691,1730041833323,-500.0,0.00027397,30]
[340896692,1730041833333,-500.0,0.00027397,30]
[340896693,1730041833343,-946.76,0.00027397,30]
[340896694,1730041833356,-188.0,0.00027397,2]
[340896695,1730041833366,-500.0,0.00027397,30]
[340896696,1730041833377,-500.0,0.00027397,30]
[340896697,1730041833387,-500.0,0.00027397,30]
[340896698,1730041833396,-671.19,0.00027397,30]
[340896699,1730041833406,-500.0,0.00027397,30]
[340896700,1730041833416,-500.0,0.00027397,30]
[340896701,1730041833426,-500.0,0.00027397,30]
[340896702,1730041833436,-500.0,0.00027397,30]
[340896703,1730041833445,-500.0,0.00027397,30]
[340896704,1730041833455,-2268.3,0.00027397,30]
[340896705,1730041833465,-500.0,0.00027397,30]
[340896706,1730041833475,-500.0,0.00027397,30]
[340896707,1730041833485,-553.07345647,0.00027397,30]
[340896708,1730041833495,-622.1,0.00027397,30]
[340896709,1730041833504,-1242.61,0.00027397,30]
[340896710,1730041833514,-500.0,0.00027397,30]
[340896711,1730041833524,-500.0,0.00027397,30]
[340896712,1730041833534,-500.0,0.00027397,30]
[340896713,1730041833545,-500.0,0.00027397,30]
[340896714,1730041833555,-327.73071916,0.00027397,30]
[340896715,1730041833565,-500.0,0.00027397,30]
[340896716,1730041833575,-500.0,0.00027397,30]
[340896717,1730041833585,-500.0,0.00027397,30]
[340896718,1730041833595,-777.61,0.00027397,30]
[340896719,1730041833605,-1076.2,0.00027397,30]
[340896720,1730041833615,-1150.5,0.00027397,30]
[340896721,1730041833624,-500.0,0.00027397,30]
[340896722,1730041833634,-500.0,0.00027397,30]
[340896723,1730041833644,-500.0,0.00027397,30]
[340896724,1730041833654,-500.0,0.00027397,30]
[340896725,1730041833664,-1689.05,0.00027397,30]
[340896726,1730041833674,-500.0,0.00027397,30]
[340896727,1730041833685,-884.2,0.00027397,30]
[340896728,1730041833694,-500.0,0.00027397,30]
[340896729,1730041833703,-500.0,0.00027397,30]
[340896730,1730041833714,-500.0,0.00027397,30]
[340896731,1730041833724,-500.0,0.00027397,30]
[340896732,1730041833734,-500.0,0.00027397,30]
[340896733,1730041833745,-500.0,0.00027397,30]
[340896734,1730041833754,-500.0,0.00027397,30]
[340896735,1730041833764,-500.0,0.00027397,30]
[340896736,1730041833774,-333.96106674,0.00027397,30]
[340896737,1730041833784,-500.0,0.00027397,30]
[340896738,1730041833795,-585.49577205,0.00027397,30]
[340896739,1730041833805,-2694.75,0.00027397,30]
[340896740,1730041833815,-862.73,0.00027397,14]
[340896741,1730041833825,-500.0,0.00027397,30]
[340896742,1730041833835,-500.0,0.00027397,30]
[340896743,1730041833845,-626.07551767,0.00027397,30]
[340896744,1730041833854,-606.866544,0.00027397,30]
[340896745,1730041833864,-1767.94,0.00027397,30]
[340896746,1730041833873,-2513.4,0.00027397,30]
[340896747,1730041833883,-572.11,0.00027397,30]
[340896748,1730041833892,-991.9,0.00027397,30]
[340896749,1730041833902,-927.76,0.00027397,30]
[340896750,1730041833912,-200.0,0.00027397,30]
[340896751,1730041833922,-500.0,0.00027397,30]
[340896752,1730041833932,-500.0,0.00027397,30]
[340896753,1730041833941,-500.0,0.00027397,30]
[340896754,1730041833951,-500.0,0.00027397,30]
[340896755,1730041833961,-1540.66,0.00027397,30]
[340896756,1730041833975,-500.0,0.00027397,30]
[340896757,1730041833985,-500.0,0.00027397,30]
[340896758,1730041833994,-500.0,0.00027397,7]
[340896759,1730041834005,-567.75047188,0.00027397,30]
[340896760,1730041834015,-500.0,0.00027397,30]
[340896761,1730041834024,-500.0,0.00027397,30]
[340896762,1730041834035,-500.0,0.00027397,30]
[340896763,1730041834045,-1267.62,0.00027397,30]
[340896764,1730041834055,-742.96,0.00027397,30]
[340896765,1730041834066,-500.0,0.00027397,30]
[340896766,1730041834076,-500.0,0.00027397,30]
[340896767,1730041834088,-926.06,0.00027397,30]
[340896768,1730041834097,-500.0,0.00027397,30]
[340896769,1730041834107,-500.0,0.00027397,30]
[340896770,1730041834117,-500.0,0.00027397,30]
[340896771,1730041834127,-151.0,0.00027397,7]
[340896772,1730041834136,-151.239284,0.00027397,7]
[340896773,1730041834146,-1552.5,0.00027397,30]
[340896774,1730041834159,-500.0,0.00027397,30]
[340896775,1730041834168,-730.2,0.00027397,30]
[340896776,1730041834178,-500.0,0.00027397,30]
[340896777,1730041834188,-762.21,0.00027397,30]
[340896778,1730041834198,-1881.62,0.00027397,30]
[340896779,1730041834208,-500.0,0.00027397,30]
[340896780,1730041834218,-1321.45,0.00027397,30]
[340896781,1730041834228,-500.0,0.00027397,30]
[340896782,1730041834238,-3156.66,0.00027397,30]
[340896783,1730041834248,-410.95735126,0.00027397,30]
[340896784,1730041834258,-601.71,0.00027397,30]
[340896785,1730041834268,-265.99774701,0.00027397,30]
[340896786,1730041834278,-2737.8,0.00027397,30]
[340896787,1730041834287,-207.18,0.00027397,7]
[340896788,1730041834296,-500.0,0.00027397,30]
[340896789,1730041834306,-614.11,0.00027397,30]
[340896790,1730041834316,-1098.42,0.00027397,30]
[340896791,1730041834326,-604.67243668,0.00027397,30]
[340896792,1730041834335,-500.0,0.00027397,30]
[340896793,1730041834345,-1191.43,0.00027397,30]
[340896794,1730041834354,-1351.01,0.00027397,30]
[340896795,1730041834364,-500.0,0.00027397,30]
[340896796,1730041834374,-793.01,0.00027397,30]
[340896797,1730041834383,-682.97,0.00027397,30]
[340896798,1730041834394,-500.0,0.00027397,30]
[340896799,1730041834404,-1662.07,0.00027397,30]
[340896800,1730041834414,-1567.75,0.00027397,30]
[340896801,1730041834424,-500.0,0.00027397,30]
[340896802,1730041834434,-151.0,0.00027397,7]
[340896803,1730041834444,-151.0,0.00027397,7]
[340896804,1730041834454,-165.44830346,0.00027397,30]
[340896805,1730041834464,-842.03,0.00027397,30]
[340896806,1730041834475,-809.65,0.00027397,30]
[340896807,1730041834484,-500.0,0.00027397,30]
[340896808,1730041834494,-870.77,0.00027397,30]
[340896809,1730041834503,-613.2,0.00027397,30]
[340896810,1730041834513,-500.0,0.00027397,30]
[340896811,1730041834523,-1047.42,0.00027397,30]
[340896812,1730041834533,-220.4408963,0.00027397,30]
[340896813,1730041834543,-500.0,0.00027397,30]
[340896814,1730041834554,-839.67,0.00027397,30]
[340896815,1730041834564,-151.0,0.00027397,7]
[340896816,1730041834575,-151.0,0.00027397,7]
[340896817,1730041834585,-500.0,0.00027397,30]
[340896818,1730041834595,-500.0,0.00027397,30]
[340896819,1730041834605,-500.0,0.00027397,30]
[340896820,1730041834614,-766.58,0.00027397,30]
[340896821,1730041834624,-848.64,0.00027397,30]
[340896822,1730041834634,-1341.18,0.00027397,30]
[340896823,1730041834866,-500.0,0.00027397,30]
[340896824,1730041834876,-500.0,0.00027397,30]
[340896825,1730041834888,-1371.75,0.00027397,30]
[340896826,1730041834898,-500.0,0.00027397,30]
[340896827,1730041834910,-500.0,0.00027397,30]
[340896828,1730041834921,-500.0,0.00027397,30]
[340896829,1730041834931,-500.0,0.00027397,30]
[340896830,1730041834941,-500.0,0.00027397,30]
[340896831,1730041834951,-500.0,0.00027397,30]
[340896832,1730041834961,-699.66,0.00027397,30]
[340896833,1730041834974,-500.0,0.00027397,30]
[340896834,1730041834984,-1135.81,0.00027397,30]
[340896835,1730041834994,-113.23913214,0.00027397,30]
[340896839,1730041838815,-405.27,0.00027367,10]
[340896840,1730041838827,-560.74086786,0.00027397,30]
[340896841,1730041838837,-500.0,0.00027397,30]
[340896842,1730041838848,-1018.68,0.00027397,30]
[340896843,1730041838859,-1146.13,0.00027397,30]
[340896844,1730041838871,-553.39,0.00027397,30]
[340896845,1730041838882,-500.0,0.00027397,30]
[340896846,1730041838892,-500.0,0.00027397,30]
[340896847,1730041838903,-919.27,0.00027397,30]
[340896848,1730041838913,-1135.73,0.00027397,30]
[340896849,1730041838923,-151.0,0.00027397,7]
[340896850,1730041838935,-151.0,0.00027397,7]
[340896851,1730041838946,-785.8,0.00027397,30]
[340896852,1730041838958,-590.0054293,0.00027397,30]
[340896853,1730041838968,-500.0,0.00027397,30]
[340896854,1730041838979,-151.0,0.00027397,7]
[340896855,1730041838990,-169.449924,0.00027397,7]
[340896856,1730041839000,-500.0,0.00027397,10]
[340896857,1730041839011,-888.1,0.00027397,30]
[340896858,1730041839021,-500.0,0.00027397,30]
[340896859,1730041839032,-500.0,0.00027397,30]
[340896860,1730041839043,-500.0,0.00027397,30]
[340896861,1730041839052,-962.53,0.00027397,30]
[340896862,1730041839061,-151.0,0.00027397,7]
[340896863,1730041839071,-151.0,0.00027397,7]
[340896864,1730041839084,-151.0,0.00027397,7]
[340896865,1730041839097,-2014.51,0.00027397,30]
[340896867,1730041839107,-500.0,0.00027397,30]
[340896869,1730041839118,-647.69,0.00027397,30]
[340896870,1730041839130,-500.0,0.00027397,30]
[340896871,1730041839140,-1393.93,0.00027397,30]
[340896872,1730041839151,-500.0,0.00027397,30]
[340896873,1730041839164,-500.0,0.00027397,30]
[340896874,1730041839175,-500.0,0.00027397,30]
[340896875,1730041839185,-1835.43,0.00027397,30]
[340896876,1730041839197,-500.0,0.00027397,30]
[340896877,1730041839208,-1033.81,0.00027397,30]
[340896878,1730041839217,-151.0,0.00027397,7]
[340896879,1730041839227,-500.0,0.00027397,30]
[340896880,1730041839236,-151.0,0.00027397,7]
[340896881,1730041839247,-198.205957,0.00027397,7]
[340896882,1730041839258,-557.91505458,0.00027397,30]
[340896883,1730041839268,-497.3444997,0.00027397,30]
[340896884,1730041839291,-285.0655003,0.00027397,30]
[340896885,1730041839302,-500.0,0.00027397,30]
[340896886,1730041839313,-1037.49,0.00027397,30]
[340896887,1730041839322,-892.70374815,0.00027397,30]
[340896894,1730041840805,-1761.7,0.00027277,2]
[340896895,1730041840818,-673.22,0.00027277,2]
[340896939,1730041844060,-834.20811037,0.00027277,2]
[340896941,1730041844071,-1058.59625185,0.00027397,30]
[340896944,1730041844088,-689.93,0.00027397,30]
[340896946,1730041844099,-409.6990548,0.00027397,2]
[340896948,1730041844113,-90.3009452,0.00027397,2]
[340896950,1730041844123,-1073.77,0.00027397,30]
[340896952,1730041844133,-669.78,0.00027397,30]
[340896954,1730041844143,-713.34,0.00027397,30]
[340896957,1730041844152,-1163.36,0.00027397,30]
[340896958,1730041844163,-574.56518758,0.00027397,30]
[340896961,1730041844172,-558.07,0.00027397,30]
[340896963,1730041844182,-522.00100301,0.00027397,30]
[340896965,1730041844192,-500.0,0.00027397,30]
[340896967,1730041844201,-866.08,0.00027397,30]
[340896969,1730041844211,-1469.83,0.00027397,7]
[340896972,1730041844221,-407.00007436,0.00027397,30]
[340896974,1730041844231,-978.54,0.00027397,30]
[340896976,1730041844242,-956.63,0.00027397,30]
[340896978,1730041844252,-500.0,0.00027397,30]
[340896980,1730041844264,-500.0,0.00027397,30]
[340896983,1730041844276,-811.69,0.00027397,30]
[340896985,1730041844287,-500.0,0.00027397,30]
[340896987,1730041844298,-151.0,0.00027397,7]
[340896989,1730041844310,-151.0,0.00027397,7]
[340896991,1730041844320,-151.0,0.00027397,7]
[340896993,1730041844330,-1173.27,0.00027397,30]
[340896995,1730041844343,-500.0,0.00027397,30]
[340896997,1730041844352,-529.26,0.00027397,30]
[340896999,1730041844362,-151.0,0.00027397,7]
[340897001,1730041844372,-151.0,0.00027397,7]
[340897003,1730041844381,-151.0,0.00027397,7]
[340897005,1730041844391,-500.0,0.00027397,30]
[340897007,1730041844401,-863.13,0.00027397,30]
[340897010,1730041844410,-157.707118,0.00027397,7]
[340897012,1730041844420,-157.707118,0.00027397,7]
[340897014,1730041844430,-708.85,0.00027397,30]
[340897016,1730041844440,-157.707118,0.00027397,7]
[340897018,1730041844449,-500.0,0.00027397,30]
[340897020,1730041844459,-157.707118,0.00027397,7]
[340897022,1730041844469,-500.0,0.00027397,30]
[340897024,1730041844479,-157.707118,0.00027397,7]
[340897026,1730041844489,-157.707118,0.00027397,7]
[340897028,1730041844499,-500.0,0.00027397,30]
[340897030,1730041844508,-34246.69,0.00027397,30]
[340897032,1730041844517,-1521.89,0.00027397,30]
[340897034,1730041844527,-500.0,0.00027397,30]
[340897036,1730041844537,-730.94,0.00027397,30]
[340897038,1730041844547,-566.11244911,0.00027397,30]
[340897041,1730041844558,-500.0,0.00027397,30]
[340897043,1730041844568,-1151.98,0.00027397,30]
[340897045,1730041844578,-929.02,0.00027397,30]
[340897047,1730041844588,-500.0,0.00027397,30]
[340897049,1730041844598,-1015.89,0.00027397,30]
[340897051,1730041844608,-500.0,0.00027397,30]